bitfinex/quotes_SOLUSD_20241222
["timestamp","ask_amount","ask_price","bid_price","bid_amount"]
[1734882552797,0.12549,181.25,181.18,29.98925435]
[1734882552983,0.12549,181.25,181.17,29.98925435]
[1734882554794,0.12549,181.23,181.17,29.98925435]
[1734882555281,20.0,181.24,181.17,29.98925435]
[1734882556009,20.0,181.24,181.15,55.33653835]
[1734882556490,20.0,181.24,181.17,53.76613835]
[1734882556803,8.5477857,181.27,181.19,29.98925435]
[1734882557489,8.5477857,181.27,181.17,53.76613835]
[1734882557678,20.0,181.24,181.15,31.55965435]
[1734882558080,20.0,181.25,181.15,31.55965435]
[1734882558281,0.12549,181.24,181.12,6.3549]
[1734882558475,0.12549,181.24,181.12,36.34415435]
[1734882558678,0.12549,181.22,181.12,36.34415435]
[1734882559001,20.12549,181.22,181.15,29.98925435]
[1734882559594,8.5477857,181.25,181.17,29.98925435]
[1734882560013,0.12549,181.24,181.17,29.98925435]
[1734882560215,20.12549,181.24,181.17,29.98925435]
[1734882560535,20.12549,181.24,181.15,29.98925435]
[1734882560916,20.0,181.22,181.15,29.98925435]
[1734882561122,0.12549,181.21,181.15,29.98925435]
[1734882561809,20.12549,181.21,181.15,29.98925435]
[1734882562008,20.12549,181.21,181.12,29.98925435]
[1734882562514,0.12549,181.18,181.12,29.98925435]
[1734882562810,0.12549,181.18,181.11,30.65315105]
[1734882563195,0.12549,181.16,181.11,0.6638967]
[1734882564108,20.0,181.15,181.11,0.6638967]
[1734882564301,0.12549,181.14,181.11,0.6638967]
[1734882565123,0.12549,181.15,181.11,0.6638967]
[1734882568302,0.12549,181.13,181.11,0.6638967]
[1734882568629,20.0,181.12,181.11,0.6638967]
[1734882568813,20.12549,181.12,181.11,0.6638967]
[1734882569323,0.12549,181.12,181.11,0.6638967]
[1734882569715,20.12549,181.12,181.11,0.6638967]
[1734882572917,20.12549,181.11,180.99,18.4749371]
[1734882574027,20.12549,181.11,181.0,23.776884]
[1734882574226,20.12549,181.11,180.98,2.27620038]
[1734882574415,20.12549,181.11,180.97,18.4749371]
[1734882574805,0.12549,181.09,180.97,18.4749371]
[1734882575316,0.12549,181.09,180.98,18.4749371]
[1734882575518,0.12549,181.09,180.97,42.2518211]
[1734882575704,0.12549,181.09,180.96,18.4749371]
[1734882576207,20.0,181.1,180.95,13.8156]
[1734882576527,0.12549,181.05,180.94,19.1388338]
[1734882577324,0.12549,181.05,180.94,0.6638967]
[1734882578335,9.11063198,181.09,180.94,0.6638967]
[1734882578336,0.12549,181.03,180.94,0.6638967]
[1734882578932,0.12549,180.98,180.94,0.6638967]
[1734882579628,6.8493,181.02,180.94,0.6638967]
[1734882579938,0.12549,181.01,180.94,0.6638967]
[1734882580632,6.8493,181.02,180.95,23.776884]
[1734882581036,1.0023,181.02,180.99,23.776884]
[1734882581235,0.12549,181.05,180.99,42.2518211]
[1734882581432,5.847,181.06,181.01,23.776884]
[1734882581811,0.12549,181.05,181.01,23.776884]
[1734882582132,5.847,181.06,181.01,42.2518211]
[1734882582328,0.12549,181.06,181.03,18.4749371]
[1734882582743,0.12549,181.06,181.04,23.776884]
[1734882582933,1.0023,181.07,181.04,23.776884]
[1734882583340,0.12549,181.06,181.03,23.776884]
[1734882584443,0.12549,181.09,181.03,42.2518211]
[1734882584817,0.12549,181.09,181.03,23.776884]
[1734882586247,0.12549,181.09,181.03,42.2518211]
[1734882587228,1.0023,181.11,181.06,18.4749371]
[1734882587423,1.0023,181.11,181.07,42.2518211]
[1734882587624,1.0023,181.11,181.08,23.776884]
[1734882587846,5.847,181.14,181.01,13.8109]
[1734882588044,0.12549,181.13,181.01,23.776884]
[1734882588251,0.12549,181.13,181.05,23.776884]
[1734882588452,0.12549,181.13,181.05,42.2518211]
[1734882589954,0.12549,181.13,181.06,18.4749371]
[1734882590131,0.12549,181.13,181.07,42.2518211]
[1734882590335,0.12549,181.13,181.08,23.776884]
[1734882590533,5.847,181.14,181.08,42.2518211]
[1734882591452,0.12549,181.13,181.08,42.2518211]
[1734882592041,5.847,181.14,181.08,42.2518211]
[1734882592558,0.12549,181.13,181.08,42.2518211]
[1734882593343,0.12549,181.13,181.08,23.776884]
[1734882593865,0.12549,181.13,181.06,17.05057564]
[1734882594163,0.12549,181.13,181.06,18.4749371]
[1734882594463,0.12549,181.13,181.07,18.4749371]
[1734882595146,0.12549,181.13,181.08,18.4749371]
[1734882595350,0.12549,181.13,181.07,18.4749371]
[1734882595959,0.12549,181.13,181.08,18.4749371]
[1734882596268,0.12549,181.13,181.07,18.4749371]
[1734882596947,0.12549,181.13,181.08,18.4749371]
[1734882599463,0.12549,181.14,181.08,18.4749371]
[1734882599852,0.12549,181.14,181.09,18.4749371]
[1734882600465,18.5433,181.17,181.1,18.4749371]
[1734882600663,5.847,181.18,181.12,18.4749371]
[1734882601164,0.12549,181.17,181.12,18.4749371]
[1734882601354,0.12549,181.17,181.13,18.4749371]
[1734882601541,0.12549,181.17,181.14,18.4749371]
[1734882601737,0.12549,181.19,181.14,18.4749371]
[1734882601941,1.0023,181.2,181.14,18.4749371]
[1734882602143,1.0023,181.2,181.15,18.4749371]
[1734882602343,0.12549,181.19,181.14,18.4749371]
[1734882602558,0.12549,181.19,181.13,18.4749371]
[1734882602866,0.12549,181.19,181.14,18.4749371]
[1734882604172,0.12549,181.19,181.15,18.4749371]
[1734882605474,8.5477857,181.24,181.16,18.4749371]
[1734882605974,0.12549,181.2,181.09,6.294]
[1734882606272,0.12549,181.14,181.09,18.4749371]
[1734882606468,0.12549,181.14,181.08,18.4749371]
[1734882607465,20.12549,181.14,181.06,18.4749371]
[1734882608672,8.5477857,181.16,181.08,18.4749371]
[1734882609054,0.12549,181.15,181.08,18.4749371]
[1734882609376,0.12549,181.15,181.09,18.4749371]
[1734882609751,8.5477857,181.16,181.1,18.4749371]
[1734882610069,0.12549,181.15,181.11,18.4749371]
[1734882610281,8.5477857,181.17,181.11,18.4749371]
[1734882610779,0.12549,181.16,181.12,18.4749371]
[1734882611585,0.12549,181.18,181.12,18.4749371]
[1734882611757,0.12549,181.18,181.13,18.4749371]
[1734882612065,0.12549,181.18,181.12,18.4749371]
[1734882612795,0.12549,181.18,181.14,18.4749371]
[1734882613104,8.6732757,181.18,181.14,18.4749371]
[1734882613526,8.6732757,181.18,181.15,18.4749371]
[1734882613810,8.5477857,181.18,181.12,18.4749371]
[1734882613989,8.5477857,181.18,181.13,18.4749371]
[1734882614195,0.12549,181.17,181.13,18.4749371]
[1734882614887,0.12549,181.18,181.13,18.4749371]
[1734882615824,8.6732757,181.18,181.13,18.4749371]
[1734882616416,8.6732757,181.18,181.11,18.4749371]
[1734882616710,8.6732757,181.18,181.1,18.4749371]
[1734882617597,8.6732757,181.16,181.1,18.4749371]
[1734882617799,8.6732757,181.16,181.09,18.4749371]
[1734882618006,8.6732757,181.16,181.07,18.4749371]
[1734882618186,0.12549,181.14,181.07,18.4749371]
[1734882618991,0.12549,181.12,181.07,18.4749371]
[1734882619415,0.12549,181.12,181.08,18.4749371]
[1734882619928,0.12549,181.12,181.03,23.776884]
[1734882619929,0.12549,181.12,181.09,18.4749371]
[1734882620233,8.6732757,181.12,181.09,18.4749371]
[1734882620617,8.5477857,181.12,181.11,18.4749371]
[1734882620930,0.12549,181.13,181.11,18.4749371]
[1734882621130,8.5477857,181.14,181.12,18.4749371]
[1734882621330,8.5477857,181.14,181.13,18.4749371]
[1734882622031,8.5477857,181.16,181.14,23.776884]
[1734882622221,8.5477857,181.16,181.15,18.4749371]
[1734882622808,8.5477857,181.19,181.15,18.4749371]
[1734882623011,0.12549,181.18,181.16,18.4749371]
[1734882623607,17.18438194,181.2,181.14,23.776884]
[1734882623608,8.5477857,181.2,181.18,23.776884]
[1734882623803,51.39449089,181.22,181.19,20.0650371]
[1734882624010,51.39449089,181.22,181.21,42.2518211]
[1734882624418,67.73714586,181.26,181.21,42.2518211]
[1734882624615,17.28863104,181.25,181.24,23.776884]
[1734882624845,2.26146389,181.25,181.24,60.7267582]
[1734882625312,50.49512079,181.47,181.24,60.7267582]
[1734882625511,50.49512079,181.47,181.33,18.4749371]
[1734882625834,0.12549,181.39,181.33,18.4749371]
[1734882626512,22.07862,181.4,181.35,18.4749371]
[1734882626720,22.07862,181.4,181.36,18.4749371]
[1734882626920,5.847,181.45,181.36,18.4749371]
[1734882627230,5.847,181.45,181.3,6.0885]
[1734882627231,5.847,181.45,181.35,18.4749371]
[1734882627448,0.12549,181.44,181.34,18.4749371]
[1734882627618,5.847,181.45,181.34,18.4749371]
[1734882628216,5.847,181.45,181.34,29.92539441]
[1734882628945,0.12549,181.44,181.34,29.92539441]
[1734882629137,0.12549,181.41,181.34,29.92539441]
[1734882629822,0.12549,181.41,181.33,29.92539441]
[1734882630940,0.12549,181.41,181.32,29.92539441]
[1734882631155,0.12549,181.41,181.31,53.70227841]
[1734882631441,0.12549,181.41,181.23,1.5901]
[1734882631642,20.0,181.33,181.23,29.92539441]
[1734882631938,0.12549,181.32,181.23,29.92539441]
[1734882632142,0.12549,181.32,181.2,29.92539441]
[1734882632518,0.12549,181.32,181.21,29.92539441]
[1734882632715,0.12549,181.32,181.22,29.92539441]
[1734882633338,0.12549,181.32,181.2,29.92539441]
[1734882634049,0.12549,181.32,181.18,23.776884]
[1734882634235,0.12549,181.32,181.18,29.92539441]
[1734882634431,23.902374,181.32,181.17,29.92539441]
[1734882634635,23.902374,181.32,181.19,29.92539441]
[1734882634636,0.12549,181.28,181.19,29.92539441]
[1734882635943,20.0,181.33,181.19,29.92539441]
[1734882636555,0.12549,181.32,181.19,29.92539441]
[1734882636726,0.12549,181.32,181.21,29.92539441]
[1734882637135,0.12549,181.32,181.22,29.92539441]
[1734882638036,0.12549,181.32,181.23,29.92539441]
[1734882638759,0.12549,181.32,181.24,29.92539441]
[1734882638945,5.847,181.36,181.26,29.92539441]
[1734882639254,5.847,181.36,181.25,29.92539441]
[1734882639456,5.847,181.36,181.27,29.92539441]
[1734882639645,5.847,181.36,181.28,29.92539441]
[1734882639845,5.847,181.36,181.29,29.92539441]
[1734882640044,1.0023,181.4,181.29,29.92539441]
[1734882640045,0.12549,181.39,181.29,29.92539441]
[1734882640466,0.12549,181.39,181.28,29.92539441]
[1734882640636,6.8493,181.4,181.28,29.92539441]
[1734882640835,6.8493,181.4,181.29,29.92539441]
[1734882641036,0.12549,181.39,181.29,29.92539441]
[1734882641734,20.0,181.37,181.29,29.92539441]
[1734882642363,20.0,181.37,181.27,29.92539441]
[1734882642537,0.12549,181.36,181.28,29.92539441]
[1734882644659,0.12549,181.36,181.26,29.92539441]
[1734882644858,0.12549,181.36,181.25,29.92539441]
[1734882645039,0.12549,181.36,181.26,23.776884]
[1734882645234,0.12549,181.36,181.23,35.94849441]
[1734882646173,0.12549,181.36,181.23,6.0231]
[1734882646368,23.902374,181.36,181.19,31.51549441]
[1734882646543,0.12549,181.27,181.17,29.92539441]
[1734882646741,0.12549,181.27,181.16,29.92539441]
[1734882649160,0.12549,181.27,181.17,23.776884]
[1734882649763,0.12549,181.27,181.16,23.776884]
[1734882650438,0.12549,181.27,181.15,29.92539441]
[1734882650650,0.12549,181.23,181.12,29.92539441]
[1734882650851,0.12549,181.23,181.1,37.87029441]
[1734882651161,0.12549,181.18,181.09,29.92539441]
[1734882651345,0.12549,181.18,181.06,36.26759441]
[1734882651545,0.12549,181.18,181.06,6.3422]
[1734882651741,0.12549,181.18,181.06,29.92539441]
[1734882652660,0.12549,181.18,181.05,1.6027]
[1734882652861,0.12549,181.18,181.07,53.70227841]
[1734882653566,0.12549,181.18,181.09,29.92539441]
[1734882653748,0.12549,181.18,181.1,53.70227841]
[1734882653956,0.12549,181.18,181.11,29.92539441]
[1734882654570,0.12549,181.18,181.11,23.776884]
[1734882654770,0.12549,181.18,181.1,29.92539441]
[1734882656652,0.12549,181.18,181.11,29.92539441]
[1734882657049,0.12549,181.18,181.12,29.92539441]
[1734882657346,5.847,181.27,181.16,29.92539441]
[1734882657561,5.847,181.27,181.17,29.92539441]
[1734882657975,0.12549,181.26,181.16,29.92539441]
[1734882658176,0.12549,181.26,181.14,29.92539441]
[1734882658379,0.12549,181.26,181.13,53.70227841]
[1734882659883,0.12549,181.23,181.14,29.92539441]
[1734882660686,0.12549,181.23,181.17,29.92539441]
[1734882660986,0.12549,181.21,181.15,29.92539441]
[1734882661194,0.12549,181.21,181.14,29.92539441]
[1734882662281,0.12549,181.21,181.15,23.776884]
[1734882662483,0.12549,181.21,181.13,23.776884]
[1734882663479,20.0,181.25,181.17,29.92539441]
[1734882663680,5.847,181.27,181.19,29.92539441]
[1734882663873,1.0023,181.29,181.21,29.92539441]
[1734882664072,21.0023,181.29,181.21,29.92539441]
[1734882664489,21.0023,181.29,181.2,23.776884]
[1734882664490,5.847,181.32,181.22,29.92539441]
[1734882664662,5.847,181.32,181.23,29.92539441]
[1734882664981,0.12549,181.31,181.23,29.92539441]
[1734882665563,26.8493,181.32,181.23,29.92539441]
[1734882665761,26.8493,181.32,181.24,29.92539441]
[1734882666065,1.0549,181.33,181.24,29.92539441]
[1734882666787,0.12549,181.32,181.24,29.92539441]
[1734882667090,1.0549,181.33,181.24,29.92539441]
[1734882667389,20.0,181.31,181.25,53.70227841]
[1734882668289,0.12549,181.3,181.25,23.776884]
[1734882668985,0.12549,181.3,181.22,29.92539441]
[1734882669168,0.12549,181.3,181.24,29.92539441]
[1734882669368,0.12549,181.3,181.23,53.70227841]
[1734882669584,0.12549,181.3,181.24,29.92539441]
[1734882669888,0.12549,181.3,181.25,23.776884]
[1734882670274,0.12549,181.3,181.24,23.776884]
[1734882670467,0.12549,181.3,181.17,29.92539441]
[1734882670672,0.12549,181.25,181.14,31.44699441]
[1734882670983,0.12549,181.25,181.14,1.5216]
[1734882671162,0.12549,181.25,181.13,29.92539441]
[1734882671362,0.12549,181.25,181.14,29.92539441]
[1734882671582,0.12549,181.25,181.11,36.56259441]
[1734882671886,0.12549,181.25,181.12,29.92539441]
[1734882672487,0.12549,181.21,181.08,1.725555]
[1734882673086,0.12549,181.16,181.08,0.128155]
[1734882673491,0.12549,181.16,181.08,30.05354941]
[1734882673690,0.12549,181.16,181.11,29.92539441]
[1734882674185,0.12549,181.16,181.12,23.776884]
[1734882674383,0.12549,181.16,181.09,29.92539441]
[1734882674584,0.12549,181.16,181.1,29.92539441]
[1734882674807,0.12549,181.16,181.11,23.776884]
[1734882675114,5.847,181.2,181.11,29.92539441]
[1734882675410,5.847,181.2,181.12,23.776884]
[1734882675788,0.12549,181.19,181.12,23.776884]
[1734882676387,20.0,181.22,181.13,29.92539441]
[1734882676594,5.847,181.25,181.14,53.70227841]
[1734882677196,0.12549,181.24,181.14,23.776884]
[1734882677996,0.12549,181.21,181.14,23.776884]
[1734882678596,0.12549,181.21,181.13,29.92539441]
[1734882678906,5.847,181.25,181.16,29.92539441]
[1734882679129,5.847,181.29,181.18,29.92539441]
[1734882679411,5.847,181.29,181.19,53.70227841]
[1734882679613,0.12549,181.27,181.19,53.70227841]
[1734882679797,5.847,181.29,181.19,23.776884]
[1734882681105,0.12549,181.25,181.19,23.776884]
[1734882681986,0.12549,181.25,181.15,20.4379]
[1734882682193,0.12549,181.25,181.16,23.776884]
[1734882682711,0.12549,181.25,181.08,98.038855]
[1734882682712,0.12549,181.25,181.08,30.05354941]
[1734882682925,0.12549,181.2,181.08,0.128155]
[1734882683916,0.12549,181.2,181.08,30.05354941]
[1734882684223,0.12549,181.2,181.09,23.776884]
[1734882684510,0.12549,181.2,181.08,30.05354941]
[1734882684815,20.0,181.25,181.1,29.92539441]
[1734882685116,0.12549,181.23,181.11,29.92539441]
[1734882685298,0.12549,181.23,181.12,29.92539441]
[1734882685491,0.12549,181.23,181.11,29.92539441]
[1734882685694,0.12549,181.23,181.12,23.776884]
[1734882686091,0.12549,181.25,181.11,23.776884]
[1734882686497,0.12549,181.25,181.1,23.776884]
[1734882687407,0.12549,181.21,181.09,23.776884]
[1734882687604,0.12549,181.21,181.09,53.70227841]
[1734882688021,3.24675805,181.28,181.09,53.70227841]
[1734882688022,20.0,181.26,181.1,29.92539441]
[1734882688195,20.0,181.26,181.11,23.776884]
[1734882688520,0.12549,181.25,181.11,53.70227841]
[1734882689518,0.12549,181.25,181.12,29.92539441]
[1734882689712,0.12549,181.25,181.14,29.92539441]
[1734882690114,0.12549,181.25,181.13,29.92539441]
[1734882690310,0.12549,181.25,181.11,23.776884]
[1734882690620,0.12549,181.17,181.08,30.05354941]
[1734882690997,5.847,181.21,181.11,29.92539441]
[1734882691198,20.0,181.24,181.14,29.92539441]
[1734882692324,0.12549,181.23,181.14,29.92539441]
[1734882692618,0.12549,181.23,181.15,53.70227841]
[1734882692806,5.847,181.27,181.15,53.70227841]
[1734882693008,5.847,181.27,181.16,29.92539441]
[1734882693818,0.12549,181.23,181.15,23.776884]
[1734882694001,0.12549,181.23,181.13,29.92539441]
[1734882694202,0.12549,181.23,181.14,23.776884]
[1734882694715,0.12549,181.23,181.14,53.70227841]
[1734882694912,0.12549,181.23,181.16,53.70227841]
[1734882695119,0.12549,181.23,181.17,23.776884]
[1734882695626,0.12549,181.23,181.17,53.70227841]
[1734882695841,5.847,181.27,181.17,53.70227841]
[1734882696139,5.847,181.27,181.18,23.776884]
[1734882696821,0.12549,181.26,181.18,23.776884]
[1734882697328,0.12549,181.26,181.16,23.776884]
[1734882697634,0.12549,181.26,181.16,53.70227841]
[1734882698044,0.12549,181.26,181.17,43.72409441]
[1734882698246,0.12549,181.26,181.19,53.70227841]
[1734882698628,0.12549,181.26,181.18,53.70227841]
[1734882698931,0.12549,181.26,181.19,29.92539441]
[1734882699444,0.12549,181.26,181.18,53.70227841]
[1734882699917,0.12549,181.26,181.18,23.776884]
[1734882700111,20.0,181.24,181.14,43.72669441]
[1734882700507,20.0,181.24,181.15,29.92539441]
[1734882700707,20.0,181.24,181.14,13.8013]
[1734882700708,20.0,181.24,181.16,29.92539441]
[1734882701230,20.0,181.24,181.17,29.92539441]
[1734882701607,0.12549,181.26,181.18,23.776884]
[1734882703020,0.12549,181.26,181.17,23.776884]
[1734882703335,0.12549,181.26,181.16,23.776884]
[1734882703531,0.12549,181.26,181.17,29.92539441]
[1734882703838,0.12549,181.26,181.19,29.92539441]
[1734882704017,1.0549,181.28,181.2,53.70227841]
[1734882704221,1.0549,181.28,181.22,23.776884]
[1734882704730,0.12549,181.27,181.2,53.70227841]
[1734882704929,1.0549,181.28,181.2,53.70227841]
[1734882705129,5.847,181.31,181.22,23.776884]
[1734882705314,35.51967215,181.33,181.25,29.92539441]
[1734882705315,1.0023,181.33,181.25,29.92539441]
[1734882705715,0.12549,181.32,181.25,29.92539441]
[1734882705938,1.0023,181.33,181.25,29.92539441]
[1734882706345,5.847,181.35,181.28,29.92539441]
[1734882706649,0.12549,181.36,181.29,23.776884]
[1734882707016,1.0023,181.37,181.29,53.70227841]
[1734882707217,18.1773738,181.39,181.31,23.776884]
[1734882707417,12.3303738,181.39,181.32,29.92539441]
[1734882707717,0.12549,181.4,181.33,23.776884]
[1734882708329,0.12549,181.41,181.31,29.92539441]
[1734882708536,0.12549,181.41,181.32,23.776884]
[1734882709152,0.12549,181.41,181.3,23.776884]
[1734882709645,0.12549,181.41,181.3,29.92539441]
[1734882709848,0.12549,181.41,181.29,23.776884]
[1734882710356,20.12549,181.41,181.29,23.776884]
[1734882711158,20.12549,181.41,181.29,53.70227841]
[1734882711362,20.12549,181.41,181.3,29.92539441]
[1734882711755,20.12549,181.41,181.31,53.70227841]
[1734882712630,20.12549,181.41,181.32,29.92539441]
[1734882712839,20.12549,181.41,181.33,29.92539441]
[1734882713348,20.0,181.41,181.34,23.776884]
[1734882713736,0.12549,181.4,181.34,23.776884]
[1734882713930,1.0023,181.42,181.34,23.776884]
[1734882714164,1.0023,181.42,181.35,29.92539441]
[1734882714531,5.847,181.44,181.36,23.776884]
[1734882714729,1.0023,181.47,181.39,29.92539441]
[1734882714937,0.12549,181.46,181.35,23.776884]
[1734882715559,0.12549,181.46,181.35,29.92539441]
[1734882715868,0.12549,181.46,181.36,23.776884]
[1734882716063,0.12549,181.44,181.36,23.776884]
[1734882716291,20.0,181.45,181.36,29.92539441]
[1734882716574,1.0023,181.47,181.39,29.92539441]
[1734882716744,1.0023,181.47,181.4,23.776884]
[1734882716934,1.0023,181.47,181.4,53.70227841]
[1734882717335,1.0023,181.51,181.42,29.92539441]
[1734882717571,1.0023,181.51,181.44,23.776884]
[1734882717744,0.12549,181.5,181.44,23.776884]
[1734882718556,1.0023,181.51,181.44,23.776884]
[1734882719036,0.12549,181.5,181.42,23.776884]
[1734882719233,0.12549,181.5,181.39,29.92539441]
[1734882719462,0.12549,181.5,181.39,23.776884]
[1734882719657,20.12549,181.5,181.39,23.776884]
[1734882721137,20.12549,181.5,181.39,53.70227841]
[1734882721342,20.12549,181.5,181.41,29.92539441]
[1734882721766,20.12549,181.5,181.39,53.70227841]
[1734882723645,20.12549,181.5,181.34,45.31649441]
[1734882724173,20.12549,181.5,181.34,15.3911]
[1734882724750,20.12549,181.5,181.34,45.31649441]
[1734882725280,1.12779,181.45,181.32,29.92539441]
[1734882725442,1.12779,181.45,181.3,15.3437]
[1734882725952,1.12779,181.45,181.31,29.92539441]
[1734882726544,1.12779,181.45,181.34,29.92539441]
[1734882726778,1.12779,181.45,181.35,29.92539441]
[1734882726985,1.12779,181.45,181.36,23.776884]
[1734882727275,1.12779,181.45,181.35,23.776884]
[1734882727444,1.12779,181.45,181.33,23.776884]
[1734882727633,1.12779,181.45,181.32,13.7877]
[1734882727960,1.12779,181.45,181.31,29.92539441]
[1734882728164,1.12779,181.45,181.34,29.92539441]
[1734882728667,1.12779,181.45,181.35,29.92539441]
[1734882729072,1.0023,181.45,181.36,23.776884]
[1734882729373,0.12549,181.44,181.34,23.776884]
[1734882729976,0.12549,181.44,181.33,23.776884]
[1734882730365,0.12549,181.44,181.34,29.92539441]
[1734882730573,1.0023,181.45,181.38,53.70227841]
[1734882730893,5.847,181.49,181.4,29.92539441]
[1734882731050,5.847,181.49,181.41,23.776884]
[1734882731490,0.12549,181.48,181.4,23.776884]
[1734882731850,0.12549,181.48,181.39,53.70227841]
[1734882732353,0.12549,181.45,181.39,53.70227841]
[1734882732599,5.847,181.49,181.4,43.70699441]
[1734882732775,5.847,181.49,181.41,53.70227841]
[1734882733161,0.12549,181.48,181.41,53.70227841]
[1734882734174,5.847,181.49,181.41,53.70227841]
[1734882734776,0.12549,181.48,181.41,53.70227841]
[1734882734949,0.12549,181.48,181.41,23.776884]
[1734882738756,0.12549,181.45,181.37,43.70899441]
[1734882738959,0.12549,181.45,181.37,13.7836]
[1734882739258,0.12549,181.45,181.37,43.70899441]
[1734882740196,0.12549,181.45,181.38,23.776884]
[1734882740498,0.12549,181.45,181.4,23.776884]
[1734882740872,5.847,181.49,181.4,53.70227841]
[1734882741080,5.847,181.49,181.4,23.776884]
[1734882741282,0.12549,181.48,181.4,23.776884]
[1734882742296,0.12549,181.45,181.4,23.776884]
[1734882742498,0.12549,181.45,181.36,13.7843]
[1734882742672,0.12549,181.45,181.33,6.0162]
[1734882742860,0.12549,181.45,181.33,13.7867]
[1734882743064,1.0023,181.44,181.3,31.48049441]
[1734882743358,20.0,181.4,181.25,29.92539441]
[1734882743589,20.0,181.4,181.24,65.63069441]
[1734882744087,1.0023,181.39,181.22,29.92539441]
[1734882744404,23.776884,181.38,181.21,43.72129441]
[1734882744691,20.0,181.31,181.17,13.7986]
[1734882744900,20.0,181.31,181.15,38.04429441]
[1734882745098,20.0,181.31,181.16,29.92539441]
[1734882745462,8.56883567,181.29,181.16,29.92539441]
[1734882745676,20.0,181.26,181.17,29.92539441]
[1734882745877,8.56883567,181.24,181.18,0.82756304]
[1734882746066,8.56883567,181.24,181.23,53.70227841]
[1734882746271,8.56883567,181.3,181.23,53.70227841]
[1734882746472,8.56883567,181.3,181.25,29.92539441]
[1734882746668,0.12549,181.31,181.26,23.776884]
[1734882747270,0.12549,181.32,181.26,23.776884]
[1734882747697,20.12549,181.32,181.26,23.776884]
[1734882748711,20.0,181.35,181.28,23.776884]
[1734882748998,40.36437215,181.38,181.28,23.776884]
[1734882749183,40.36437215,181.38,181.28,53.70227841]
[1734882749568,5.847,181.38,181.28,53.70227841]
[1734882750069,0.12549,181.37,181.28,53.70227841]
[1734882750565,20.0,181.4,181.3,53.70227841]
[1734882750764,5.847,181.43,181.32,29.92539441]
[1734882750996,8.04142361,181.43,181.33,23.776884]
[1734882751292,0.12549,181.42,181.3,23.776884]
[1734882752077,0.12549,181.42,181.32,23.776884]
[1734882752270,0.12549,181.42,181.33,29.92539441]
[1734882752470,2.19442361,181.43,181.34,53.70227841]
[1734882752714,8.56883567,181.44,181.37,53.70227841]
[1734882752888,8.56883567,181.44,181.39,29.92539441]
[1734882753600,8.56883567,181.5,181.4,23.776884]
[1734882753801,0.12549,181.49,181.4,23.776884]
[1734882754301,8.56883567,181.5,181.4,23.776884]
[1734882754476,8.56883567,181.51,181.4,23.776884]
[1734882754677,0.12549,181.5,181.4,23.776884]
[1734882754873,0.12549,181.47,181.37,31.48649441]
[1734882755089,0.12549,181.47,181.37,1.5611]
[1734882755285,20.12549,181.47,181.37,1.5611]
[1734882755486,20.12549,181.47,181.36,6.5027]
[1734882756120,20.12549,181.47,181.36,23.776884]
[1734882756321,0.12549,181.44,181.33,29.92539441]
[1734882756677,0.12549,181.44,181.34,29.92539441]
[1734882757084,20.0,181.42,181.35,43.71079441]
[1734882757304,20.0,181.42,181.36,29.92539441]
[1734882757631,20.0,181.42,181.37,29.92539441]
[1734882758111,0.12549,181.43,181.36,23.776884]
[1734882758813,0.12549,181.42,181.36,23.776884]
[1734882759933,0.12549,181.42,181.36,53.70227841]
[1734882761424,0.12549,181.42,181.35,13.7854]
[1734882762127,0.12549,181.4,181.35,13.7854]
[1734882762515,20.0,181.41,181.36,29.92539441]
[1734882762717,20.0,181.41,181.37,23.776884]
[1734882762915,20.0,181.41,181.36,23.776884]
[1734882763116,20.0,181.41,181.36,53.70227841]
[1734882764604,0.12549,181.42,181.36,53.70227841]
[1734882765729,20.0,181.42,181.36,53.70227841]
[1734882766104,20.0,181.42,181.36,23.776884]
[1734882766433,20.0,181.42,181.36,53.70227841]
[1734882767107,0.12549,181.44,181.38,23.776884]
[1734882767434,8.69432567,181.44,181.37,13.7839]
[1734882768038,0.12549,181.45,181.37,13.7839]
[1734882768332,0.12549,181.42,181.37,13.7839]